bitfinex/quotes_ETHUSD_20230831
["timestamp","ask_amount","ask_price","bid_price","bid_amount"]
[1693501259808,2.57049179,1645.6,1645.5,0.63456255]
[1693501259975,2.57049179,1645.6,1645.5,1.77586331]
[1693501259976,9.54845407,1645.6,1645.5,1.77586331]
[1693501260178,2.0,1646.9,1645.7,1.14130076]
[1693501260387,0.3762597,1647.4,1645.7,1.14130076]
[1693501260388,2.0,1646.5,1645.7,1.14130076]
[1693501260591,0.3762597,1647.4,1645.7,1.14130076]
[1693501260592,0.3762597,1647.4,1646.7,1.14130076]
[1693501260808,6.0,1648.1,1646.0,6.0]
[1693501260809,8.4357913,1647.8,1646.8,1.1335087]
[1693501260980,12.141,1647.7,1646.5,1.1335087]
[1693501261183,2.0,1647.6,1646.4,1.1335087]
[1693501261389,14.141,1647.5,1646.6,1.1335087]
[1693501261571,12.141,1647.5,1646.9,1.1335087]
[1693501261914,0.002,1647.4,1646.9,0.49700999]
[1693501262197,12.141,1647.3,1646.3,0.39900999]
[1693501262397,12.141,1647.3,1647.1,0.39900999]
[1693501262598,12.141,1647.3,1646.9,0.39900999]
[1693501262801,12.141,1647.3,1647.2,0.39900999]
[1693501263004,12.141,1647.3,1646.7,0.39900999]
[1693501263202,12.141,1647.3,1646.6,0.39900999]
[1693501263502,12.141,1647.3,1647.1,0.39900999]
[1693501263878,12.141,1647.3,1646.8,0.39900999]
[1693501264268,12.141,1647.3,1647.1,0.39900999]
[1693501265011,8.88935702,1647.3,1647.1,0.39900999]
[1693501265409,6.06081016,1647.3,1647.2,0.39900999]
[1693501266321,0.004,1647.5,1647.4,0.39900999]
[1693501266519,2.0,1648.3,1647.6,0.39900999]
[1693501266681,0.004,1648.2,1647.6,0.39900999]
[1693501266881,0.004,1648.4,1647.6,0.39900999]
[1693501267076,0.004,1648.6,1647.6,0.39900999]
[1693501267283,0.004,1648.6,1648.1,0.39900999]
[1693501267530,0.004,1648.7,1648.1,0.39900999]
[1693501267931,0.004,1648.9,1647.9,0.39900999]
[1693501268135,0.004,1649.2,1648.2,0.39900999]
[1693501268331,0.004,1649.2,1648.4,0.39900999]
[1693501268935,11.83470614,1649.5,1648.6,0.39900999]
[1693501268936,0.004,1649.4,1648.6,0.39900999]
[1693501269133,0.98787061,1649.4,1648.6,0.39900999]
[1693501269309,0.004,1649.3,1649.0,0.39900999]
[1693501269509,0.004,1649.4,1649.2,0.39900999]
[1693501269714,0.59870614,1649.5,1648.6,0.39900999]
[1693501270039,0.004,1649.4,1648.9,0.39900999]
[1693501270266,0.004,1649.4,1649.1,0.39900999]
[1693501270558,0.004,1649.4,1649.3,0.39900999]
[1693501270771,0.59470614,1649.5,1649.3,0.39900999]
[1693501271103,3.44223348,1650.8,1649.3,0.39900999]
[1693501271104,0.004,1649.7,1649.6,0.39900999]
[1693501271304,0.004,1650.5,1650.1,0.39900999]
[1693501271512,0.004,1650.5,1650.3,0.39900999]
[1693501271724,4.69202041,1651.0,1650.5,0.16453566]
[1693501271725,0.105,1650.6,1650.5,0.16453566]
[1693501271926,0.101,1650.6,1650.5,0.16453566]
[1693501272853,0.101,1650.6,1650.2,0.002]
[1693501273027,0.101,1650.6,1650.4,0.16453566]
[1693501273207,0.101,1650.6,1650.1,0.002]
[1693501273407,0.101,1650.6,1650.1,2.9277433]
[1693501273618,0.004,1650.8,1650.2,6.224]
[1693501273856,0.004,1650.8,1650.7,2.9277433]
[1693501274144,0.0055594,1651.0,1650.7,2.9277433]
[1693501274443,0.0055594,1651.0,1650.9,2.9277433]
[1693501275228,0.101,1652.0,1650.9,2.9277433]
[1693501275431,0.101,1652.0,1651.2,2.9277433]
[1693501275629,0.101,1652.0,1651.4,2.9277433]
[1693501275828,0.101,1652.0,1650.9,2.91653566]
[1693501276030,0.08346434,1651.7,1650.9,2.9277433]
[1693501276230,0.08346434,1651.7,1650.7,3.0]
[1693501276450,0.08346434,1651.7,1650.9,0.242517]
[1693501276647,0.08346434,1651.2,1650.9,0.242517]
[1693501276961,0.67591771,1651.9,1650.9,0.242517]
[1693501277258,0.002,1651.8,1651.0,0.002]
[1693501277457,0.002,1651.8,1651.0,2.91853566]
[1693501277664,0.002,1651.8,1651.1,0.002]
[1693501277822,0.08346434,1651.8,1651.1,0.002]
[1693501278161,0.002,1651.7,1651.0,0.002]
[1693501278548,0.002,1651.7,1651.2,2.9277433]
[1693501278773,0.002,1651.7,1651.2,2.9297433]
[1693501279059,0.002,1651.7,1651.3,2.9277433]
[1693501279227,0.08546434,1651.9,1651.4,2.9277433]
[1693501279427,0.002,1651.8,1651.4,2.9277433]
[1693501279626,0.002,1651.8,1651.6,2.9277433]
[1693501279826,0.002,1651.9,1651.6,2.9277433]
[1693501280048,0.002,1651.9,1651.7,2.9277433]
[1693501280248,0.103,1652.0,1651.7,2.9277433]
[1693501280759,0.103,1652.0,1651.9,2.9277433]
[1693501280967,0.101,1652.0,1651.9,2.9277433]
[1693501282940,0.101,1652.3,1651.9,12.1517433]
[1693501283137,0.101,1652.3,1652.2,2.9277433]
[1693501284655,0.101,1652.3,1652.2,5.9277433]
[1693501285550,0.101,1653.4,1652.3,2.91653566]
[1693501285744,0.08346434,1653.2,1652.6,2.9277433]
[1693501285943,0.08902374,1653.0,1652.6,2.9277433]
[1693501286150,0.002,1652.9,1652.6,2.9277433]
[1693501288258,8.88547711,1653.6,1652.8,0.70697626]
[1693501288463,0.95924534,1653.5,1653.0,0.70697626]
[1693501288659,1.55169871,1653.5,1653.1,2.9277433]
[1693501288859,2.5745,1653.8,1653.3,0.70697626]
[1693501289059,2.5745,1653.8,1653.1,0.70697626]
[1693501289348,2.5745,1653.8,1652.7,0.70697626]
[1693501289683,2.5745,1653.8,1652.8,2.9277433]
[1693501289684,8.29302374,1653.6,1652.8,2.9277433]
[1693501289879,0.82930237,1653.5,1652.8,0.70697626]
[1693501290045,10.86752374,1653.8,1652.8,3.63471956]
[1693501290449,3.101,1653.7,1653.0,0.70697626]
[1693501290656,3.101,1653.7,1653.0,2.9277433]
[1693501290860,0.101,1653.7,1653.0,3.63471956]
[1693501291057,3.101,1653.7,1653.0,3.63471956]
[1693501291257,3.101,1653.7,1653.1,0.002]
[1693501291663,0.101,1653.7,1653.2,0.70697626]
[1693501291859,0.101,1653.7,1653.3,0.002]
[1693501292187,0.101,1653.7,1653.1,0.002]
[1693501292491,0.101,1653.7,1653.1,2.9297433]
[1693501292653,0.23541407,1653.6,1653.2,3.63671956]
[1693501292853,0.23541407,1653.6,1653.3,0.002]
[1693501293048,0.23541407,1653.6,1653.1,0.002]
[1693501293049,6.0,1653.5,1653.1,0.002]
[1693501293249,0.6,1653.4,1652.7,0.002]
[1693501293472,8.04302374,1653.2,1652.7,0.002]
[1693501293668,8.04302374,1653.2,1652.5,0.002]
[1693501293882,0.59245337,1653.2,1652.5,0.002]
[1693501294111,3.0,1653.3,1652.5,3.88671956]
[1693501294287,3.0,1653.3,1652.6,0.002]
[1693501294885,8.04302374,1653.1,1652.6,0.002]
[1693501295100,8.04302374,1652.9,1652.5,0.002]
[1693501295307,8.04302374,1652.9,1651.2,12.224]
[1693501295308,8.04302374,1652.6,1651.7,0.95697626]
[1693501295604,0.59245337,1652.8,1651.4,0.95697626]
[1693501295605,8.04302374,1652.4,1651.4,0.95697626]
[1693501295883,5.04302374,1652.4,1651.2,3.95697626]
[1693501296111,5.04302374,1652.2,1651.1,3.95697626]
[1693501296250,5.04302374,1652.2,1650.9,4.05697626]
[1693501296251,0.50430237,1652.1,1650.9,4.05697626]
[1693501296451,5.04302374,1651.7,1650.9,0.1]
[1693501296807,5.04302374,1652.0,1650.9,0.1]
[1693501297127,8.12574189,1652.7,1651.2,3.95697626]
[1693501297276,5.04302374,1652.5,1651.2,3.95697626]
[1693501297457,5.04302374,1652.3,1651.2,3.95697626]
[1693501297652,5.04302374,1652.0,1651.2,3.95697626]
[1693501297887,0.50430237,1651.9,1651.2,3.95697626]
[1693501298089,14.85547711,1652.5,1651.2,3.95697626]
[1693501298276,0.59245337,1652.5,1651.3,0.002]
[1693501298475,4.8381,1652.7,1651.3,0.002]
[1693501298476,12.11,1652.4,1651.3,0.990351]
[1693501298804,12.11,1652.4,1651.5,3.95697626]
[1693501298977,12.70045337,1652.4,1651.6,0.002]
[1693501299179,12.108,1652.4,1651.7,3.95697626]
[1693501299383,12.108,1652.4,1652.0,3.0]
[1693501299579,13.319,1652.4,1652.0,3.0]
[1693501299795,12.108,1652.4,1652.1,3.95697626]
[1693501300115,12.108,1652.4,1652.1,0.95697626]
[1693501300398,12.108,1652.4,1652.3,0.95697626]
[1693501300564,12.108,1652.4,1652.3,3.95697626]
[1693501300896,12.108,1652.4,1652.3,4.35267389]
[1693501301084,0.101,1653.7,1652.3,3.95697626]
[1693501301085,0.002,1653.4,1652.3,3.95697626]
[1693501301390,0.101,1653.7,1652.1,0.95697626]
[1693501301391,2.0,1653.2,1652.1,0.95697626]
[1693501301576,12.69445337,1653.1,1652.1,0.95697626]
[1693501301777,3.27144534,1653.0,1652.1,0.95697626]
[1693501301992,3.27144534,1653.0,1651.8,0.002]
[1693501301993,3.59445337,1652.9,1651.9,0.95697626]
[1693501302297,3.59445337,1652.9,1651.7,3.0]
[1693501302298,2.0,1652.7,1652.0,0.002]
[1693501302456,12.69745337,1652.6,1651.8,0.002]
[1693501302669,1.27174534,1652.5,1651.8,0.002]
[1693501302894,12.105,1652.4,1652.0,0.95697626]
[1693501303094,12.103,1652.4,1652.0,0.95697626]
[1693501303598,12.103,1652.4,1652.3,3.95697626]
[1693501304399,12.053,1652.4,1652.3,3.95697626]
[1693501304600,12.053,1652.4,1652.3,7.28041719]
[1693501305009,12.053,1652.4,1652.3,6.88471956]
[1693501306127,12.003,1652.4,1652.3,6.88471956]
[1693501306637,0.002,1653.4,1653.1,0.95697626]
[1693501306844,4.7492,1653.6,1652.7,3.95697626]
[1693501306999,0.002,1653.5,1652.8,2.9277433]
[1693501307203,2.0,1653.0,1652.2,3.0]
[1693501307399,0.002,1652.9,1652.2,3.0]
[1693501307944,0.002,1653.1,1652.2,6.0]
[1693501308117,2.9277433,1653.0,1652.2,5.9277433]
[1693501308440,0.002,1653.1,1652.2,6.52051763]
[1693501308441,0.002,1652.9,1652.2,6.52051763]
[1693501308626,0.002,1653.0,1652.5,3.0]
[1693501308938,2.0,1653.4,1652.5,3.0]
[1693501308939,0.002,1653.2,1652.5,3.0]
[1693501309147,12.101,1652.9,1652.2,3.59277433]
[1693501309320,12.101,1652.9,1652.7,3.0]
[1693501309321,0.002,1652.8,1652.7,3.0]
[1693501309521,12.101,1652.8,1652.7,3.0]
[1693501309733,12.101,1652.8,1652.3,3.0]
[1693501309933,0.002,1652.7,1652.3,5.9277433]
[1693501310241,0.002,1652.7,1652.2,3.0]
[1693501310454,12.101,1652.6,1652.0,3.002]
[1693501310604,0.002,1652.5,1652.1,2.9277433]
[1693501310803,0.002,1652.5,1652.3,3.0]
[1693501310804,12.101,1652.4,1652.3,3.0]
[1693501311009,12.101,1652.4,1652.3,5.9277433]
[1693501311446,12.101,1652.4,1652.3,3.0]
[1693501311614,12.101,1652.4,1652.3,5.9277433]
[1693501312233,12.101,1652.4,1652.3,6.52051763]
[1693501312434,12.101,1652.4,1652.3,7.112971]
[1693501312606,12.101,1652.4,1652.3,6.52019667]
[1693501312811,12.101,1652.4,1652.3,5.9277433]
[1693501313165,12.101,1652.4,1652.3,3.0]
[1693501313375,12.101,1652.4,1652.3,5.9277433]
[1693501314715,12.101,1652.4,1652.3,6.52019667]
[1693501314965,12.101,1652.4,1652.3,7.17221634]
[1693501315766,12.101,1652.4,1652.3,6.57976297]
[1693501315927,12.101,1652.4,1652.3,5.9277433]
[1693501316431,0.002,1653.2,1652.9,3.0]
[1693501316632,4.7472,1653.6,1652.9,5.9277433]
[1693501316633,0.002,1653.4,1652.9,5.9277433]
[1693501316834,4.7472,1653.6,1653.1,3.0]
[1693501316835,0.81781718,1653.5,1653.1,3.0]
[1693501317549,2.9277433,1653.5,1652.9,3.0]
[1693501318141,2.23,1653.6,1652.9,3.0]
[1693501318449,2.9277433,1653.5,1652.9,3.0]
[1693501318812,2.23,1653.6,1652.9,3.0]
[1693501319017,5.1577433,1653.6,1652.9,3.0]
[1693501319228,0.51577433,1653.5,1652.9,5.9277433]
[1693501319429,2.23,1653.6,1653.0,2.9277433]
[1693501319645,2.23,1653.6,1653.2,3.0]
[1693501320048,0.002,1653.5,1653.2,3.0]
[1693501320411,0.002,1653.6,1653.4,3.0]
[1693501320751,0.101,1653.7,1653.6,3.0]
[1693501320752,0.103,1653.7,1653.6,3.0]
[1693501320913,0.101,1653.7,1653.6,3.0]
[1693501321119,0.101,1653.7,1653.4,3.0]
[1693501321311,0.103,1653.7,1653.4,3.0]
[1693501321923,0.103,1653.7,1653.6,3.0]
[1693501322143,3.0287433,1653.7,1653.1,3.59245337]
[1693501322458,3.0287433,1653.7,1652.9,2.421798]
[1693501322459,3.23261763,1653.6,1652.9,0.002]
[1693501322627,0.002,1653.5,1652.7,0.002]
[1693501323156,0.002,1653.5,1653.0,3.0]
[1693501323357,0.002,1653.5,1653.1,0.002]
[1693501323655,0.002,1653.6,1653.1,0.002]
[1693501323849,0.002,1653.6,1653.2,3.0]
[1693501324452,0.002,1653.6,1653.5,3.0]
[1693501324626,0.101,1653.7,1653.5,3.0]
[1693501325040,0.101,1653.7,1653.3,3.0]
[1693501325243,0.002,1653.6,1653.3,3.0]
[1693501325442,0.002,1653.6,1653.5,3.0]
[1693501325617,2.9277433,1653.6,1653.1,0.002]
[1693501325823,0.101,1653.7,1653.1,0.002]
[1693501325824,2.9297433,1653.5,1653.1,0.002]
[1693501326137,3.52019667,1653.5,1652.8,0.002]
[1693501326340,0.35201967,1653.4,1652.8,0.002]
[1693501326514,3.35201967,1653.4,1652.8,0.002]
[1693501326718,2.9277433,1653.3,1652.8,0.002]
[1693501326948,2.9277433,1653.3,1651.9,6.81645337]
[1693501326949,2.0,1653.0,1652.6,0.002]
[1693501327181,2.0,1652.6,1651.7,3.0]
[1693501327333,0.59245337,1652.9,1651.7,3.0]
[1693501327334,2.9277433,1652.4,1651.7,3.0]
[1693501327667,2.0,1652.8,1652.0,3.0]
[1693501327668,12.105,1652.3,1652.0,3.0]
[1693501327851,12.105,1652.3,1652.2,3.0]
[1693501328821,12.105,1652.3,1652.2,3.59245337]
[1693501329048,12.105,1652.3,1652.2,3.0]
[1693501330375,12.105,1652.3,1651.9,0.002]
[1693501330376,13.3155,1652.3,1651.9,0.002]
[1693501330657,13.3155,1652.3,1651.7,0.002]
[1693501330819,12.105,1652.3,1651.9,3.0]
[1693501331024,12.105,1652.3,1652.2,3.0]
[1693501331567,12.105,1652.3,1652.2,3.59245337]
[1693501331864,3.68541,1652.3,1652.2,3.59245337]
[1693501332019,3.68541,1652.3,1652.0,3.0]
[1693501332220,5.04928324,1652.3,1652.2,3.0]
[1693501332625,5.04928324,1652.3,1652.2,6.52019667]
[1693501332945,5.04928324,1652.3,1652.2,7.17221634]
[1693501334729,0.101,1653.7,1653.6,3.0]
[1693501335049,0.101,1653.7,1652.8,12.232]
[1693501335050,0.101,1653.7,1653.5,3.0]
[1693501335425,0.101,1653.7,1653.3,3.0]
[1693501335663,0.101,1653.7,1652.2,0.65201967]
[1693501335969,2.101,1653.7,1652.7,3.0]
[1693501336142,2.3057,1653.6,1652.7,3.0]
[1693501336502,2.0,1653.5,1652.7,3.0]
[1693501336661,2.0,1653.5,1653.1,3.0]
[1693501336662,1.03057,1653.5,1653.1,3.0]
[1693501336957,2.0557,1653.6,1653.1,3.0]
[1693501337143,0.101,1653.7,1653.2,3.0]
[1693501337530,0.101,1653.7,1652.9,3.0]
[1693501337730,0.101,1653.7,1653.2,3.0]
[1693501337731,0.002,1653.6,1653.2,3.0]
[1693501338255,0.002,1653.6,1652.9,0.002]
[1693501338455,6.232,1653.3,1652.7,0.002]
[1693501338822,6.232,1653.1,1652.4,0.002]
[1693501339024,6.232,1653.1,1652.7,3.0]
[1693501339226,2.246,1653.5,1652.8,0.002]
[1693501339533,2.196,1653.5,1652.9,3.0]
[1693501339856,2.196,1653.5,1653.1,3.0]
[1693501340063,0.002,1653.6,1653.1,3.0]
[1693501340262,0.002,1653.6,1652.9,3.002]
[1693501340463,0.002,1653.6,1653.0,0.002]
[1693501340635,6.232,1653.5,1653.0,0.002]
[1693501341238,12.097,1653.4,1653.2,3.0]
[1693501341563,12.097,1653.4,1653.3,3.0]
[1693501341763,12.097,1653.4,1653.0,5.9297433]
[1693501341930,12.097,1653.4,1653.1,3.002]
[1693501341931,12.017,1653.4,1653.1,3.002]
[1693501342238,12.017,1653.4,1653.3,3.0]
[1693501343058,12.017,1653.4,1653.3,5.9277433]
[1693501343444,12.017,1653.4,1653.3,3.0]
[1693501343445,11.967,1653.4,1653.3,3.0]
[1693501343784,10.60907018,1653.4,1653.3,3.0]
[1693501344657,10.60907018,1653.4,1653.3,5.9277433]
[1693501345251,10.60907018,1653.4,1653.1,3.0]
[1693501345461,11.6699772,1653.4,1653.1,3.0]
[1693501345755,10.60907018,1653.4,1653.1,3.0]
[1693501346162,10.60907018,1653.4,1653.3,3.0]
[1693501346351,10.60907018,1653.4,1653.3,5.9277433]
[1693501347557,0.103,1653.7,1653.6,3.0]
[1693501347776,0.103,1653.7,1653.4,3.0]
[1693501347777,0.101,1653.7,1653.4,3.0]
[1693501347992,0.103,1653.7,1653.4,3.0]
[1693501348156,0.103,1653.7,1653.2,3.0]
[1693501348359,0.002,1653.6,1653.2,3.0]
[1693501348668,0.053,1653.7,1653.2,3.0]
[1693501349075,0.053,1653.7,1653.6,3.0]
[1693501349855,0.053,1653.7,1653.4,3.0]
[1693501350187,6.232,1653.5,1652.9,3.0]
[1693501350406,0.053,1653.7,1653.0,2.9277433]
[1693501350600,0.053,1653.7,1653.1,3.0]
[1693501350808,0.053,1653.7,1653.3,3.0]
[1693501351011,0.053,1653.7,1653.5,3.0]
[1693501351195,0.053,1653.7,1653.6,2.9277433]
[1693501351996,0.053,1653.7,1653.5,3.0]
[1693501352193,0.053,1653.7,1653.6,2.9277433]
[1693501352594,0.053,1653.7,1653.6,3.52051763]
[1693501352976,0.053,1653.7,1653.6,3.47899181]
[1693501355115,0.053,1653.7,1653.6,9.71099181]
[1693501355359,0.002,1653.9,1653.8,3.0]
[1693501355479,0.101,1654.0,1653.8,5.9277433]
[1693501355674,0.101,1654.0,1653.9,7.33451763]
[1693501356924,0.002,1654.2,1654.1,3.0]
[1693501357213,0.103,1654.4,1654.3,3.0]
[1693501357383,0.101,1654.4,1654.3,5.9277433]
[1693501357578,0.101,1654.4,1654.3,6.52051763]
[1693501358192,0.33173474,1654.4,1654.3,6.52051763]
[1693501358806,0.101,1654.4,1654.3,6.52051763]
[1693501359511,0.101,1654.4,1654.3,5.9277433]
[1693501359712,0.33261275,1654.4,1654.3,3.0]
[1693501360015,0.101,1654.4,1654.3,5.9277433]
[1693501361684,0.101,1654.8,1654.7,3.0]
[1693501362023,0.101,1654.8,1654.7,9.7417433]
[1693501362218,0.101,1654.8,1654.7,10.71591763]
[1693501362896,0.101,1654.9,1654.7,10.71591763]
[1693501363103,0.002,1655.0,1654.9,3.0]
[1693501363414,0.1065594,1655.1,1654.9,5.9277433]
[1693501363623,0.1065594,1655.1,1655.0,6.7417433]
[1693501363783,9.4e-06,1655.1,1655.0,7.71591763]
[1693501368028,9.4e-06,1655.1,1655.0,3.90191763]
[1693501368425,9.4e-06,1655.1,1655.0,7.71591763]
[1693501368927,9.4e-06,1655.2,1655.1,3.0]
[1693501369146,9.4e-06,1655.2,1655.1,7.29933506]
[1693501369827,9.4e-06,1655.2,1655.1,5.9277433]
[1693501370533,0.21910874,1655.2,1655.1,5.9277433]
[1693501371706,0.101,1655.3,1655.1,5.9277433]
[1693501371900,0.101,1656.0,1655.1,5.9277433]
[1693501371901,0.101,1656.0,1655.7,3.0]
[1693501372106,0.101,1656.0,1655.7,6.814]
[1693501372422,0.101,1656.0,1655.9,3.0]
[1693501372621,0.101,1656.0,1655.9,5.9277433]
[1693501373225,0.101,1656.0,1655.7,6.814]
[1693501373429,0.101,1656.0,1655.7,3.0]
[1693501373606,0.101,1656.0,1655.5,3.0]
[1693501374006,0.20736149,1655.9,1655.6,2.9277433]
[1693501374223,0.20736149,1655.9,1655.7,3.0]
[1693501374835,0.20736149,1655.9,1655.8,2.9277433]
[1693501375034,0.10117768,1655.9,1655.8,6.7417433]
[1693501375247,0.00016119,1656.0,1655.9,3.0]
[1693501375541,0.00016119,1656.0,1655.9,3.59277433]
[1693501375728,0.00016119,1656.0,1655.9,5.9277433]
[1693501376108,0.00016119,1656.0,1655.5,3.0]
[1693501376439,0.002,1655.9,1655.5,3.006]
[1693501376677,0.002,1655.9,1655.0,3.814]
[1693501376678,0.002,1655.9,1655.6,3.0]
[1693501377141,0.002,1655.9,1655.8,3.0]
[1693501377341,0.00016119,1656.0,1655.8,6.6091433]
[1693501377546,0.00016119,1656.0,1655.9,2.9277433]
[1693501378325,0.00016119,1656.0,1655.9,5.9277433]
[1693501380221,0.101,1656.8,1656.4,3.0]
[1693501380434,0.101,1656.8,1656.4,5.9277433]
[1693501380642,0.101,1656.8,1656.4,6.90191763]
[1693501380935,0.101,1656.8,1656.5,3.0]
[1693501381134,0.101,1656.8,1656.0,6.814]
[1693501381135,0.101,1656.8,1656.3,3.0]
[1693501381636,0.101,1656.8,1656.0,3.0]
[1693501382783,0.101,1656.8,1656.2,3.0]
[1693501382936,0.101,1656.8,1656.4,3.0]
[1693501383275,0.002,1656.7,1656.6,3.0]
[1693501383475,0.101,1656.8,1656.6,3.0]
[1693501383645,3.0287433,1656.8,1656.2,3.0]
[1693501383835,0.002,1656.7,1656.2,3.0]
[1693501384056,0.002,1656.7,1656.4,3.0]
[1693501384253,0.002,1656.7,1656.4,5.9277433]
[1693501384655,0.002,1656.7,1656.3,3.041]
[1693501384854,0.002,1656.7,1656.1,3.0]
[1693501385675,0.002,1656.7,1656.2,2.9277433]
[1693501385843,0.002,1656.7,1656.0,3.51551397]
[1693501385844,12.232,1656.5,1656.0,0.47451397]
[1693501386170,0.002,1656.4,1655.7,3.0]
[1693501386767,6.232,1656.2,1655.5,3.0]
[1693501386965,0.6252,1656.1,1655.7,3.0]
[1693501387167,0.002,1656.0,1655.5,3.0]
[1693501387369,0.002,1656.2,1655.5,3.008]
[1693501387549,0.602,1656.2,1655.5,3.008]
[1693501387744,6.234,1656.1,1655.5,3.0]
[1693501387945,6.234,1656.1,1655.5,0.008]
[1693501387946,9.273,1655.9,1655.5,0.008]
[1693501388150,6.232,1655.7,1655.2,0.008]
[1693501388370,6.232,1655.7,1655.1,3.0]
[1693501388574,6.232,1655.7,1655.2,0.008]
[1693501389640,0.9273,1655.8,1655.4,3.0]
[1693501389840,2.1081,1655.9,1655.5,0.008]
[1693501390244,2.1101,1655.9,1655.5,0.008]
[1693501390445,0.002,1655.9,1655.7,3.0]
[1693501390640,10.3121,1656.4,1655.7,3.0]
[1693501390853,0.002,1656.3,1655.7,3.0]
[1693501391376,2.9297433,1656.3,1655.7,3.0]
[1693501391571,6.234,1656.2,1655.7,3.0]
[1693501391773,0.002,1656.1,1655.7,3.0]
[1693501391986,9.1597433,1656.0,1655.4,3.008]
[1693501392152,6.232,1655.8,1655.5,0.008]
[1693501392352,3.043,1655.9,1655.2,0.008]
[1693501392353,6.232,1655.6,1655.2,0.008]
[1693501392555,6.232,1655.6,1654.2,3.0]
[1693501392556,6.232,1655.3,1654.9,0.008]
[1693501392742,6.232,1655.3,1654.7,0.008]
[1693501393069,6.232,1655.3,1654.8,3.0]
[1693501393278,6.232,1655.4,1655.1,3.0]
[1693501393445,6.232,1655.4,1655.1,3.008]
[1693501393649,2.163,1655.5,1655.1,3.008]
[1693501393847,2.163,1655.5,1655.2,0.008]
[1693501394050,2.163,1655.5,1655.0,0.008]
[1693501394278,8.395,1655.5,1655.0,0.008]
[1693501394478,6.232,1655.3,1655.0,0.008]
[1693501394847,2.163,1655.5,1655.3,3.0]
[1693501395677,2.3064,1655.8,1655.3,3.0]
[1693501395890,2.9277433,1655.7,1655.4,0.008]
[1693501396059,3.45115763,1655.7,1655.4,0.008]
[1693501396248,6.75541433,1655.7,1655.3,3.0]
[1693501396578,6.75541433,1655.7,1655.4,0.008]
[1693501396875,6.75541433,1655.7,1655.2,0.008]
[1693501397078,2.3064,1655.8,1655.3,3.0]
[1693501397281,6.232,1655.7,1655.4,0.008]
[1693501397452,6.232,1655.7,1655.2,0.008]
[1693501397781,9.1597433,1655.7,1655.2,0.008]
[1693501397977,6.232,1655.5,1655.2,0.008]
[1693501398369,2.3064,1655.8,1655.2,2.9357433]
[1693501398677,2.3064,1655.8,1655.5,3.0]
[1693501398979,2.3064,1655.8,1655.5,3.008]
[1693501399209,0.6254,1656.1,1655.5,0.008]
[1693501399350,0.6254,1656.1,1655.4,0.008]
[1693501399351,6.232,1655.9,1655.4,0.008]
[1693501399687,6.232,1655.7,1655.4,0.008]
[1693501400878,0.6232,1655.8,1655.6,3.0]
[1693501400879,6.232,1655.8,1655.6,3.0]
[1693501401082,6.232,1655.8,1655.4,3.008]
[1693501401284,6.232,1655.8,1655.5,0.008]
[1693501402380,6.8552,1655.8,1655.5,0.008]
[1693501402591,9.7829433,1655.8,1655.5,0.008]
[1693501403381,6.232,1655.8,1655.5,0.008]
[1693501404251,0.002,1656.1,1655.5,0.008]
[1693501404581,6.232,1656.0,1655.5,0.008]
[1693501404752,0.002,1655.9,1655.5,0.008]
[1693501405153,0.002,1655.9,1655.7,3.0]
[1693501405379,0.002,1656.1,1655.7,3.0]
[1693501405587,6.67548,1656.1,1655.5,3.0]
[1693501405788,0.002,1656.0,1655.5,3.0]
[1693501407598,0.002,1656.0,1655.7,3.0]
[1693501407883,0.6067495,1656.1,1655.5,3.0]
[1693501408087,0.002,1656.0,1655.5,3.008]
[1693501408485,0.6067495,1656.0,1655.5,3.008]
[1693501408693,6.234,1655.9,1655.3,3.50323739]
[1693501408878,6.234,1655.9,1655.4,0.008]
[1693501408879,10.74114208,1655.9,1655.4,0.008]
[1693501409078,6.232,1655.7,1655.4,0.008]
[1693501409281,1.58139878,1655.9,1655.4,0.008]
[1693501409282,6.232,1655.5,1655.4,0.008]
[1693501409481,9.1597433,1655.5,1655.2,0.008]
[1693501409653,9.1597433,1655.5,1654.8,3.0]
[1693501409654,6.232,1655.3,1654.9,0.008]
[1693501409854,6.232,1655.3,1654.7,0.008]
[1693501410054,8.6539,1655.5,1654.9,3.0]
[1693501410283,11.5816433,1655.5,1655.0,0.008]
[1693501410494,12.73980763,1655.5,1655.0,0.008]
[1693501410665,12.73980763,1655.5,1654.9,3.0]
[1693501410863,12.73980763,1655.5,1655.0,0.008]
[1693501410864,11.5816433,1655.5,1655.0,0.008]
[1693501411172,2.90712425,1655.8,1655.5,3.0]
[1693501411173,0.90712425,1655.8,1655.5,3.0]
[1693501411359,0.60793982,1656.4,1656.1,2.998]
[1693501411555,1.91524851,1656.8,1655.4,6.041]
[1693501411556,0.101,1656.8,1656.3,6.232]
[1693501411794,0.101,1656.8,1656.5,2.998]
[1693501412852,0.101,1656.8,1656.6,3.041]
[1693501413253,0.101,1656.8,1656.7,2.998]
[1693501413457,0.101,1656.8,1656.6,3.041]